Cogmind - Beta 9.6 @@@ ROGUE MODE // 2020.07.11 @ 20:00:07 Player: Lyft Result: Destroyed by G-34 Mercenary with Small Laser Performance ------------- Evolutions (0) 0 Regions Visited (1) 200 Robots Destroyed (22) 110 Value Destroyed (440) 440 Prototype IDs (0) 0 Alien Tech Used (0) 0 Bonus (0) 0 TOTAL SCORE: 750 Bonus ------- None Cogmind --------- Core Integrity 0/250 Matter 300/300 Energy 100/100 System Corruption 3% Temperature Cool (15) Movement Core (550) Ox10 Location -10/Materials Parts ------- > --- POWER (1) -------- (None) > --- PROPULSION (2) --- (None) > --- UTILITY (2) ------ Large Storage Unit Large Storage Unit > --- WEAPON (2) ------- (None) > --- INVENTORY (16) --- Light Ion Engine Improved Ion Engine Light Treads Wheel Compact Wheel Large Storage Unit Medium Matter Pod (100) EM Pulse Gun Grenade Launcher Grenade Launcher Plasma Cutter Peak State ------------ > --- POWER ------------ Improved Ion Engine > --- PROPULSION ------- Light Treads Wheel > --- UTILITY ---------- Large Storage Unit Large Storage Unit > --- WEAPON ----------- Medium Laser Plasma Cutter > --- INVENTORY -------- Light Ion Engine Improved Ion Engine Light Treads Wheel Compact Wheel Large Storage Unit Medium Matter Pod EM Pulse Gun Grenade Launcher Grenade Launcher [Rating: 10] Favorites ----------- Power Ion Engine Engine Ion Engine Propulsion Light Treads Treads Light Treads Leg Aluminum Leg Wheel Wheel Utility Large Storage Unit Storage Large Storage Unit Weapon Medium Laser Energy Gun Medium Laser Launcher EMP Blaster Special Weapon Plasma Cutter Build | -11 -10 ------- Run | Scr Mat Slots Evolved . | . . Power . | . . Propulsion . | . . Utility . | . . Weapon . | . . Parts Attached 12 | 3 9 Power 1 | . 1 Engine 1 | . 1 Core . | . . Reactor . | . . Propulsion 3 | 2 1 Treads 1 | 1 . Leg . | . . Wheel 2 | 1 1 Hover . | . . Flight . | . . Utility 5 | 1 4 Device . | . . Storage 5 | 1 4 Processor . | . . Hackware . | . . Protection . | . . Artifact . | . . Weapon 3 | . 3 Energy Gun 1 | . 1 Energy Cannon . | . . Ballistic Gun . | . . Ballistic Cannon . | . . Launcher 1 | . 1 Special Weapon 1 | . 1 Impact Weapon . | . . Slashing Weapon . | . . Piercing Weapon . | . . Special Melee Weapon . | . . Unidentified Prototypes . | . . Parts Lost 6 | . 6 Power 1 | . 1 Propulsion 2 | . 2 Utility . | . . Weapon 3 | . 3 Highest Loss Streak 4 | . 4 Average Slot Usage (%) 94 | . 94 Engine 13 | . 13 Treads 13 | . 13 Wheel 13 | . 13 Storage 28 | . 28 Energy Gun 20 | . 20 Launcher 4 | . 4 Naked Turns . | . . Heaviest Build 45 | 17 45 Greatest Support 20 | 20 20 Greatest Overweight (x) 4 | . 4 Average Overweight (x) 2 | . 2 Largest Inventory Capacity 16 | 8 16 Average Capacity 12 | 6 13 Most Carried 11 | 6 11 Average Carried 8 | 4 8 Final Capacity 16 | 8 16 Final Carried 11 | 4 11 Class Distribution -------------------- 100% | Mutant Dominant Class ---------------- Mutant | -10/Materials Resources | -11 -10 ----------- Run | Scr Mat Matter Collected 365 | 230 135 Remotely . | . . Salvage Created 833 | 100 733 Parts 53 | 3 50 Haulers Intercepted . | . . Recyclers Shooed 3 | 1 2 Parts Field Recycled . | . . Retrieved Matter . | . . Parts Self-Destructed . | . . Prevented . | . . Kills | -11 -10 ------- Run | Scr Mat Combat Hostiles Destroyed 15 | . 15 Guns 11 | . 11 AOE 3 | . 3 Classes Destroyed 6 | 1 5 Worker 1 | . 1 Builder 3 | . 3 Recycler 2 | 1 1 Operator 1 | . 1 Swarmer 6 | . 6 Grunt 9 | . 9 Best Kill Streak 5 | 1 5 Combat Bots Only 4 | . 4 Max Kills in Single Turn 2 | 1 2 Gunslinging . | . . Exploded 1 | . 1 Melee . | . . Uniques/NPCs Destroyed . | . . Combat | -11 -10 -------- Run | Scr Mat Damage Taken 953 | . 953 Core 253 | . 253 Absorbed by Shields . | . . Core Remaining (%) 100 | 100 . Volleys Fired 49 | 3 46 Largest 2 | 2 2 Hottest 90 | 90 90 Shots Fired 97 | 6 91 Gun 83 | 6 77 Cannon . | . . Launcher 14 | . 14 Special . | . . Kinetic . | . . Thermal 48 | 3 45 Explosive . | . . Electromagnetic 49 | 3 46 Robot Hit Streak 12 | 6 12 Robot Miss Streak 4 | . 4 Penetration Max . | . . Secondary Targets 3 | . 3 Max Gunslinging Chain 1 | . 1 Shots Hit Robots 57 | 6 51 Core Hits 31 | 2 29 Critical Hits . | . . Critical Kills . | . . Critical Parts Destroyed . | . . Melee Attacks . | . . Impact . | . . Slashing . | . . Piercing . | . . Sneak Attacks . | . . Combat Hostiles . | . . Follow-up Attacks . | . . Damage Inflicted 972 | 79 893 Guns 572 | 79 493 Cannons . | . . Explosions 400 | . 400 Melee . | . . Ramming . | . . Kinetic . | . . Thermal 318 | 39 279 Explosive . | . . Electromagnetic 654 | 40 614 Impact . | . . Slashing . | . . Piercing . | . . Highest Corruption 3 | . 3 Average Corruption 2 | . 2 Corruption Purged . | . . Effects 2 | . 2 Message Errors 1 | . 1 Energy Discharges 1 | . 1 Overload Shots . | . . Overflow Damage 6 | . 6 Projectiles . | . . Explosions 6 | . 6 Melee . | . . Knockbacks . | . . Impact . | . . Kinetic . | . . Secondary . | . . Self-Inflicted Damage 74 | . 74 Shots 5 | . 5 Rammed . | . . Targets Rammed . | . . Kicked . | . . Crushed . | . . Highest Temperature 186 | 110 186 Average Temperature 56 | 61 56 Received Heat Transfer 366 | . 366 Siege Activations . | . . Robots Corrupted 1 | . 1 Combat Hostiles 1 | . 1 Parts Fried 1 | . 1 Impact Corruptions . | . . Robots Melted . | . . Combat Hostiles . | . . Parts Melted 1 | 1 . Heat Transferred 877 | 111 766 Parts Sabotaged . | . . Parts Stolen . | . . Parts Stripped . | . . Power Chain Reactions 1 | . 1 Missiles Intercepted . | . . Alert | -11 -10 ------- Run | Scr Mat Peak Influence 303 | 5 303 Average Influence 178 | 2 183 Maximum Alert Level 1 | . 1 Low Security (%) 53 | 100 51 Level 1 46 | . 48 Level 2 . | . . Level 3 . | . . Level 4 . | . . Level 5 . | . . High Security . | . . Max Security . | . . Squads Dispatched 5 | . 5 Investigation 4 | . 4 Extermination . | . . Reinforcement 1 | . 1 Assault . | . . Garrison . | . . Intercept . | . . Construction Impeded . | . . Haulers Reinforced . | . . Stealth | -11 -10 --------- Run | Scr Mat Distress Signals 4 | . 4 Communications Jammed . | . . Distress Signals . | . . Times Spotted 30 | . 30 Peak Tracking Total 4 | . 4 Tactical Retreats 3 | . 3 Traps | -11 -10 ------- Run | Scr Mat Traps Triggered 5 | . 5 Indirectly 2 | . 2 Trap Hack Attempts . | . . Triggered . | . . Disarmed . | . . Reprogrammed . | . . Reused . | . . Traps Extracted . | . . Installed . | . . Triggered . | . . Machines | -11 -10 ---------- Run | Scr Mat Machines Disabled 3 | . 3 Max in Single Turn 1 | . 1 Machines Sabotaged . | . . Garrisons Compromised . | . . Overloaded Fab Kills . | . . Fab Network Shutdowns . | . . Hacking | -11 -10 --------- Run | Scr Mat Machines Accessed 3 | . 3 Terminals 3 | . 3 Fabricators . | . . Repair Stations . | . . Recycling Units . | . . Scanalyzers . | . . Garrison Access . | . . Total Hacks 10 | . 10 Successful 7 | . 7 Failed 2 | . 2 Catastrophic . | . . Database Lockouts 4 | . 4 Manual 11 | . 11 Terminals 10 | . 10 Fabricators . | . . Repair Stations . | . . Recycling Units . | . . Scanalyzers . | . . Garrison Access . | . . Terminal Hacks 4 | . 4 Robot Analysis 3 | . 3 Locate Traps 1 | . 1 Fabricator Hacks . | . . Repair Station Hacks . | . . Recycling Unit Hacks . | . . Scanalyzer . | . . Garrison Access Hacks . | . . Unauthorized Hacks 3 | . 3 Terminals 3 | . 3 Botnet 3 | . 3 Fabricators . | . . Repair Stations . | . . Recycling Units . | . . Scanalyzers . | . . Garrison Access . | . . Data Cores Recovered . | . . Used . | . . Hacking Detections 2 | . 2 Full Trace Events 1 | . 1 Feedback Events . | . . Feedback Blocked . | . . Robot Schematics Acquired . | . . Robots Built . | . . Matter . | . . Time . | . . Total Robot Build Rating . | . . Part Schematics Acquired . | . . Parts Built . | . . Matter . | . . Time . | . . Total Part Build Rating . | . . Parts Repaired . | . . Time . | . . Parts Recycled . | . . Recycled Matter . | . . Retrieved Matter . | . . Retrieved Components . | . . Parts Scanalyzed . | . . Part Schematics Acquired . | . . Parts Damaged . | . . Bothacking | -11 -10 ------------ Run | Scr Mat Used RIF Installer . | . . Robots Hacked . | . . Non-combat . | . . Combat . | . . Robot Hacks Applied . | . . Relay Couplers Released . | . . Robots Rewired . | . . Allies Hacked . | . . Hacks Repelled . | . . Allies | -11 -10 -------- Run | Scr Mat Total Allies . | . . Largest Group . | . . Highest-Rated Group . | . . Highest-Rated Ally . | . . Total Orders . | . . Ally Attacks . | . . Total Damage . | . . Kills . | . . Allies Corrupted . | . . Allies Melted . | . . Intel | -11 -10 ------- Run | Scr Mat Robot Analysis Total 3 | . 3 Derelict Logs Recovered . | . . Drone Launches . | . . Drone Recoveries . | . . Exploration | -11 -10 ------------- Run | Scr Mat Turns Passed 819 | 23 796 Spaces Moved 456 | 6 450 Core . | . . Treads 145 | 6 139 Legs . | . . Wheels 311 | . 311 Hover . | . . Flight . | . . Fastest Speed 120 | 160 120 Average Speed 134 | 160 133 Slowest Speed 200 | 160 200 Overloaded Moves . | . . Propulsion Burnouts . | . . Robots Hopped . | . . Cave-ins Triggered . | . . Exploration Rate (%) 27 | 2 53 Regions Visited 1 Branch Regions . Pre-discovered Areas . | . . Known Exits Taken . | . . Unknown Exits Taken 1 | 1 . Scrap Searched . | . . Spaces Dug . | . . Terrain Destroyed 2 | . 2 Melee . | . . Projectile . | . . AOE 2 | . 2 Actions | -11 -10 --------- Run | Scr Mat Total 565 | 14 551 Wait 28 | . 28 Move 455 | 5 450 Hop . | . . Pick Up 15 | 1 14 Fast Attach . | . . Attach 2 | 1 1 Detach . | . . Swap 10 | 2 8 Drop 6 | 2 4 Fire 49 | 3 46 Melee . | . . Ram . | . . Kick . | . . Crush . | . . Escape Stasis . | . . Rewire . | . . Trap . | . . Miscellaneous . | . . Route ------- -11/Scrapyard -10/Materials (discovered 1 exit: [*Mat]) History --------- Turn | Location | Event 14 | -11/Scrapyard | Discovered new exit (range 3) 24 | -11/Scrapyard | Entered Materials 162 | -10/Materials | Discovered new exit (range 16) 313 | -10/Materials | Central database locked down 329 | -10/Materials | Build established: Mutant 797 | -10/Materials | Core integrity fell below 50% 815 | -10/Materials | Core integrity fell below 20% 820 | -10/Materials | Destroyed by G-34 Mercenary with Small Laser Last Messages --------------- 00646_ Med. Laser destroyed. 00646_ Destroyed Med. Laser. 00646_ U-05 Engineer lays Concrete. 00649_ U-05 Engineer builds a Wall. 00674_ Acquired 3 matter. 00675_ Triggered Shock Trap. 00675_ The floor emits a surge of raw power. 00675_ System corrupted (+2). 00676_ Triggered Shock Trap. 00676_ The floor emits a surge of raw power. 00676_ System corrupted (+1). 00703_ System corrupted: Energy discharge (-95). 00751_ W-16 Scout sends out distress signal. 00766_ H 2U|7ASIE94FW2SPVHE6CDXE|P>CO7# 00786_ Lgt. Treads destroyed. 00790_ Wheel destroyed. 00790_ Door malfunctions. 00794_ EMP Blaster destroyed. 00812_ Imp. Ion Engine destroyed. 00818_ U-05 Engineer lays Concrete. Map ----- +----------------------------------------------------+ | #????????????????????????????????? | | #????????????????????????????????? | | #????????????????????????????????? | | #????????????????????????????????? | | #????????????????????????????????? | | #????????????????????????????????? | | #????????????????????????????????? | | #????????????????????????????????? | | #????????????????????????????????? | | #???????##???????????????????????? | | #### #???????????????????????? | | T ??????????????????????? | | #### "" ????????????????????????? | | #??? ???????????????##########? | | #??? ???????????????# | #? | | #???# ???????????????# #? | | #???# #??????????????# !] #? | | #???# #??????????????# ![ #? | | #???# /??????????????# #? | | #???# #??????????????# #? | | #???# ^ #??????????????# " " ?? | | #???# #??????????????# "R???? | | #???# #??????????????# ?????? | | #???# #################/#####??? | | ##??# g u #??? | | #??# g@ #??? | | #??# #################/## #??? | | #??# #?????# # #??? | | #??# #?????# # #??? | | #??# #?????# """ """ # #??? | | ##??# #?????# """ """ # #??? | | #???# #?????# """ """ # #??? | | #???# #?????############## #??? | | #???# #??????????????????# #??? | | #???# #???????????????#### #??? | | #???# #??????????????##!! #??? | | #???# #??????????????#! #??? | | ##???# #??????????????#! #??? | | ?????# #??????????????#! #??? | | ###### #??????????????#! ####??? | | ^^ #??????????????##!!??????? | | ^^ #???????????????###??????? | | % #????????????????????????? | | ##+#######????????????????????????? | | ! #???????????????????????????? | | #???????????????????????????? | | ""#???????????????????????????? | | T"#???????????????????????????? | | ""#???????????????????????????? | | !! #???????????????????????????? | +----------------------------------------------------+ Best States ------------- Heat Dissipation 25 Energy Generation 12 Energy Capacity 265 Matter Stores 300 Matter Capacity 300 Sight Range 16 Terrain Scan Density 10 Evasion (%) 40 Recoil Reduction 1 Item Schematics ----------------- None Robot Schematics ------------------ None Fabricated ------------ Nothing Alien Tech Used ----------------- None Achievements -------------- Party Time Challenges ------------ None Game ------ Seed ShieldMetafiberReactor Manual? 0 Play Time 00:08:54 Cumulative 8.5 hours Start 2020.07.11 @ 19:49:09 End 2020.07.11 @ 20:00:07 Sessions 1 Manual Loads 0 Difficulty Rogue Special Mode None Game No. 19 Rogue 19 Adventurer 0 Explorer 0 Win Type - Total 0 Types 0/0/0/0/0/0/0 Lore% 18 Gallery% 14 Achievement% 14 Wizard Run 0 Options --------- ASCII 0 Keyboard 0 Movement Mouse Keybinds 0 Fullscreen 2 Font 24/Terminus Map View 76x50 Tactical HUD 1 Map Filters NONE Filters NONE Steam 1 RUN: 076c203f-0cc7-4467-baac-da0cc92c866d